{"text_format":"1","workbook":"xlsx","n_sheets":3,"sheets":["109-24 Requirements","Vendor Response Lookup","MoSCoW Values"],"not_rendered":{"charts":0,"images":0,"macros":1,"external_links":0,"defined_names":4,"comments":0,"pivot_tables":0},"unopened":[],"bounds":{"document_bytes":16777216,"sheet_cells":100000,"rows_first":2000,"rows_last":500,"rows_between":2000,"halvings":0,"cell_chars":16384,"cell_head_chars":4096},"cells_cut":0,"cells_raw":0,"read":"whole","date_system":"1900"}

{"sheet":"109-24 Requirements","index":0,"n_rows":62,"n_cols":10,"rows_kept":62,"cut":false,"hidden":false,"merged":[[0,0,0,9],[1,0,1,9],[2,0,2,9],[4,0,4,3],[6,0,6,3],[4,5,4,9],[6,5,6,9]]}
["RFQ # 109-24"]
["LOCATION ANALYTICS REPORTING SOFTWARE"]
["Appendix No. 1 - Requirements Traceability Matrix (RTM)"]
[]
["Proposing Vendor Name:"]
[]
["Proposing Vendor Contact Name:"]
[]
["ID","Requirement Category","Requirement Type","Requirement Description","Prioritization Value","MoSCoW Value","Request for Information","Requirement Compliance","Description","Product/Module"]
["1.0","General Inquiry"]
[{"$f":"A10+0.1","v":1.1000000000000001},"General Inquiry","Functional","Browser Accessibility ",null,"Must Have","Describe your solution's accessibility over multiple browser platforms and if your solution is agnostic to the major platforms, including:\n\na) Chrome\nb) Edge\nc) Safari\nd) Firefox","Cannot Meet",{"$f":"IFERROR(VLOOKUP(H11,VendorResponseLookupTbl[], 2,0), \"\")","v":" The product cannot meet the requirement “Out-of-the-Box”, “With Configuration”, “With Custom Programming” or with a “Future Release”."},"<Please use this space to note what product/module of the solution is required to address the requirement.>"]
[1.2000000000000002,"General Inquiry","Functional","SaaS Solution",null,"Must Have","Describe your solution's ability to provide a modern, cloud based solution and connectivity.","Cannot Meet",{"$f":"IFERROR(VLOOKUP(H12,VendorResponseLookupTbl[], 2,0), \"\")","v":" The product cannot meet the requirement “Out-of-the-Box”, “With Configuration”, “With Custom Programming” or with a “Future Release”."},"<Please use this space to note what product/module of the solution is required to address the requirement.>"]
[1.3000000000000003,"General Inquiry","Functional","Device Functionality",null,"Must Have","Describe how your solution provides functionality and user interface across different devices (desktop, laptop, mobile devices/phones).","Cannot Meet",{"$f":"IFERROR(VLOOKUP(H13,VendorResponseLookupTbl[], 2,0), \"\")","v":" The product cannot meet the requirement “Out-of-the-Box”, “With Configuration”, “With Custom Programming” or with a “Future Release”."},"<Please use this space to note what product/module of the solution is required to address the requirement.>"]
[1.4000000000000004,"General Inquiry","Functional","Mobile Access",null,"Should Have","Describe your solution's ability for mobile access and interface for both the back end and public access views, including both Apple and Android platforms.","Cannot Meet",{"$f":"IFERROR(VLOOKUP(H14,VendorResponseLookupTbl[], 2,0), \"\")","v":" The product cannot meet the requirement “Out-of-the-Box”, “With Configuration”, “With Custom Programming” or with a “Future Release”."},"<Please use this space to note what product/module of the solution is required to address the requirement.>"]
[1.5000000000000004,"General Inquiry","Functional","Technology Accessibility Compliance",null,"Must Have","Describe your solution's ability for public citizens to view and operate your solution if they have a disability, and if your solution is in compliance with Colorado House Bill 21-1110 on Technology Accessibility Compliance standards","Cannot Meet",{"$f":"IFERROR(VLOOKUP(H15,VendorResponseLookupTbl[], 2,0), \"\")","v":" The product cannot meet the requirement “Out-of-the-Box”, “With Configuration”, “With Custom Programming” or with a “Future Release”."},"<Please use this space to note what product/module of the solution is required to address the requirement.>"]
[]
[2,"Licensing/User Roles"]
[{"$f":"A17+0.1","v":2.1},"Licensing/User Roles","Functional","Licensing",null,"Must Have","Please describe your solutions ability to have multiple user licenses available, including, Administrator permissions, general use permissions, etc.","Cannot Meet",{"$f":"IFERROR(VLOOKUP(H18,VendorResponseLookupTbl[], 2,0), \"\")","v":" The product cannot meet the requirement “Out-of-the-Box”, “With Configuration”, “With Custom Programming” or with a “Future Release”."},"<Please use this space to note what product/module of the solution is required to address the requirement.>"]
[{"$f":"A18+0.1","v":2.2000000000000002},"Licensing/User Roles","Functional","Simultaneous Viewing",null,"Must Have","Please describe in detail the application's ability to allow individual and multiple users to view similar data across multiple items simultaneously.","Cannot Meet",{"$f":"IFERROR(VLOOKUP(H19,VendorResponseLookupTbl[], 2,0), \"\")","v":" The product cannot meet the requirement “Out-of-the-Box”, “With Configuration”, “With Custom Programming” or with a “Future Release”."},"<Please use this space to note what product/module of the solution is required to address the requirement.>"]
[{"$f":"A19+0.1","v":2.3000000000000003},"Licensing/User Roles","Functional","Audit Trails",null,"Should Have","Describe how your solution can provide an audit trail of a user's specific actions, including creation, deletion, migration of records/documents.","Cannot Meet",{"$f":"IFERROR(VLOOKUP(H20,VendorResponseLookupTbl[], 2,0), \"\")","v":" The product cannot meet the requirement “Out-of-the-Box”, “With Configuration”, “With Custom Programming” or with a “Future Release”."},"<Please use this space to note what product/module of the solution is required to address the requirement.>"]
[{"$f":"A20+0.1","v":2.4000000000000004},"Licensing/User Roles","Functional","Versioning",null,"Should Have","Describe how your solution allows for a user to track changes and revert to a previous version, if it is needed by a user.","Cannot Meet",{"$f":"IFERROR(VLOOKUP(H21,VendorResponseLookupTbl[], 2,0), \"\")","v":" The product cannot meet the requirement “Out-of-the-Box”, “With Configuration”, “With Custom Programming” or with a “Future Release”."},"<Please use this space to note what product/module of the solution is required to address the requirement.>"]
[]
[3,"User Interface and Geofencing"]
[{"$f":"A23+0.1","v":3.1},{"$f":"B23","v":"User Interface and Geofencing"},"Functional","Search Fields",null,"Must Have","Describe your solution's ability for providing searchable fields for items, keywords, locations, etc.","Cannot Meet",{"$f":"IFERROR(VLOOKUP(H24,VendorResponseLookupTbl[], 2,0), \"\")","v":" The product cannot meet the requirement “Out-of-the-Box”, “With Configuration”, “With Custom Programming” or with a “Future Release”."},"<Please use this space to note what product/module of the solution is required to address the requirement.>"]
[{"$f":"A24+0.1","v":3.2},{"$f":"B24","v":"User Interface and Geofencing"},"Functional","Creation of Geofencing",null,"Must Have","Please describe your solution's ability to create a geofence around a designated area set by a user.","Cannot Meet",{"$f":"IFERROR(VLOOKUP(H25,VendorResponseLookupTbl[], 2,0), \"\")","v":" The product cannot meet the requirement “Out-of-the-Box”, “With Configuration”, “With Custom Programming” or with a “Future Release”."},"<Please use this space to note what product/module of the solution is required to address the requirement.>"]
[{"$f":"A25+0.1","v":3.3000000000000003},"User Interface and Geofencing","Functional","Modification of Geofencing",null,"Must Have","Please describe how your solution is able to modify a geofence that has been previously created by a user.","Cannot Meet",{"$f":"IFERROR(VLOOKUP(H26,VendorResponseLookupTbl[], 2,0), \"\")","v":" The product cannot meet the requirement “Out-of-the-Box”, “With Configuration”, “With Custom Programming” or with a “Future Release”."},"<Please use this space to note what product/module of the solution is required to address the requirement.>"]
[{"$f":"A26+0.1","v":3.4000000000000004},"User Interface and Geofencing","Functional","Number of Locations",null,"Must Have","Please describe your solution's ability on the number of locations and geofences that a single user can have set up at any given time, and how many geofences a client can have set up across the entire platform and all users at any given time.","Cannot Meet",{"$f":"IFERROR(VLOOKUP(H27,VendorResponseLookupTbl[], 2,0), \"\")","v":" The product cannot meet the requirement “Out-of-the-Box”, “With Configuration”, “With Custom Programming” or with a “Future Release”."},"<Please use this space to note what product/module of the solution is required to address the requirement.>"]
[{"$f":"A27+0.1","v":3.5000000000000004},"User Interface and Geofencing","Functional","Location Sizes",null,"Must Have","Please describe your solution's ability to create a geofence for locations that are:\n\na) As small as a single building; and\nb) As large as the entire City of Thornton\n\nInclude any issues your solution may have with either size, and/or if your solution has any suggested size limits","Cannot Meet",{"$f":"IFERROR(VLOOKUP(H28,VendorResponseLookupTbl[], 2,0), \"\")","v":" The product cannot meet the requirement “Out-of-the-Box”, “With Configuration”, “With Custom Programming” or with a “Future Release”."},"<Please use this space to note what product/module of the solution is required to address the requirement.>"]
[{"$f":"A28+0.1","v":3.6000000000000005},"User Interface and Geofencing","Functional","Location Time Period",null,"Should Have","Please describe your solution's ability to have a geofenced location set for only a period of time to collect data that is set by a user.","Cannot Meet",{"$f":"IFERROR(VLOOKUP(H29,VendorResponseLookupTbl[], 2,0), \"\")","v":" The product cannot meet the requirement “Out-of-the-Box”, “With Configuration”, “With Custom Programming” or with a “Future Release”."},"<Please use this space to note what product/module of the solution is required to address the requirement.>"]
[]
[4,"Property Overview"]
[{"$f":"A31+0.1","v":4.0999999999999996},{"$f":"B31","v":"Property Overview"},"Functional","Visitation Trends",null,"Must Have","Please describe your solution's ability to track and provide information on a geofenced site's ability to show the:\n\na) Date\nb) Times\nc) Number of visitors","Cannot Meet",{"$f":"IFERROR(VLOOKUP(H32,VendorResponseLookupTbl[], 2,0), \"\")","v":" The product cannot meet the requirement “Out-of-the-Box”, “With Configuration”, “With Custom Programming” or with a “Future Release”."},"<Please use this space to note what product/module of the solution is required to address the requirement.>"]
[{"$f":"A32+0.1","v":4.1999999999999993},{"$f":"B32","v":"Property Overview"},"Functional","Individual Visitation",null,"Must Have","Please describe your solution's ability to show how long an individual has stayed at a location.","Cannot Meet",{"$f":"IFERROR(VLOOKUP(H33,VendorResponseLookupTbl[], 2,0), \"\")","v":" The product cannot meet the requirement “Out-of-the-Box”, “With Configuration”, “With Custom Programming” or with a “Future Release”."},"<Please use this space to note what product/module of the solution is required to address the requirement.>"]
[{"$f":"A33+0.1","v":4.2999999999999989},{"$f":"B33","v":"Property Overview"},"Functional","Individual Frequency",null,"Must Have","Please describe your solution's ability to track and show how many times an individual has visited a location during a specified amount of time.","Cannot Meet",{"$f":"IFERROR(VLOOKUP(H34,VendorResponseLookupTbl[], 2,0), \"\")","v":" The product cannot meet the requirement “Out-of-the-Box”, “With Configuration”, “With Custom Programming” or with a “Future Release”."},"<Please use this space to note what product/module of the solution is required to address the requirement.>"]
[{"$f":"A34+0.1","v":4.3999999999999986},{"$f":"B34","v":"Property Overview"},"Functional","Individual Origin",null,"Must Have","Please describe your solution's ability to track and show where a visitor has come from as an origin point.  Include in your response how long can your system track an individual prior to their entry into a designated area.","Cannot Meet",{"$f":"IFERROR(VLOOKUP(H35,VendorResponseLookupTbl[], 2,0), \"\")","v":" The product cannot meet the requirement “Out-of-the-Box”, “With Configuration”, “With Custom Programming” or with a “Future Release”."},"<Please use this space to note what product/module of the solution is required to address the requirement.>"]
[{"$f":"A35+0.1","v":4.4999999999999982},{"$f":"B35","v":"Property Overview"},"Functional","Individual Departure",null,"Must Have","Please describe your solution's ability to track and show where a visitor goes to after they leave a designated area.  Include in your response how long after an individual has left a designated area that they can be tracked and reported on.","Cannot Meet",{"$f":"IFERROR(VLOOKUP(H36,VendorResponseLookupTbl[], 2,0), \"\")","v":" The product cannot meet the requirement “Out-of-the-Box”, “With Configuration”, “With Custom Programming” or with a “Future Release”."},"<Please use this space to note what product/module of the solution is required to address the requirement.>"]
[{"$f":"A36+0.1","v":4.5999999999999979},{"$f":"B36","v":"Property Overview"},"Functional","Individual Patterns",null,"Must Have","Please describe your solution's ability to track and show where a visitor's patterns or repeated attendance to a designated area.","Cannot Meet",{"$f":"IFERROR(VLOOKUP(H37,VendorResponseLookupTbl[], 2,0), \"\")","v":" The product cannot meet the requirement “Out-of-the-Box”, “With Configuration”, “With Custom Programming” or with a “Future Release”."},"<Please use this space to note what product/module of the solution is required to address the requirement.>"]
[]
[5,"Macroeconomic Data"]
[{"$f":"A39+0.1","v":5.0999999999999996},{"$f":"B39","v":"Macroeconomic Data"},"Functional","Demographic Data",null,"Must Have","Please describe how your solution is able to capture demographic data, and what demographic data your solution is able to report out on.  Thornton would be interested in items that include, but are not limited to:\n\na) Household Income\nb) Education Level\nc) Age\nd) Ethnicity","Cannot Meet",{"$f":"IFERROR(VLOOKUP(H40,VendorResponseLookupTbl[], 2,0), \"\")","v":" The product cannot meet the requirement “Out-of-the-Box”, “With Configuration”, “With Custom Programming” or with a “Future Release”."},"<Please use this space to note what product/module of the solution is required to address the requirement.>"]
[{"$f":"A40+0.1","v":5.1999999999999993},{"$f":"B40","v":"Macroeconomic Data"},"Functional","Trade Area Analysis",null,"Should Have","Please describe how your solution is able to provide a trade area analysis of different areas of interest, including but not limited to:\n\na) Income breakdown of visitor\nb) Home ownership of visitor","Cannot Meet",{"$f":"IFERROR(VLOOKUP(H41,VendorResponseLookupTbl[], 2,0), \"\")","v":" The product cannot meet the requirement “Out-of-the-Box”, “With Configuration”, “With Custom Programming” or with a “Future Release”."},"<Please use this space to note what product/module of the solution is required to address the requirement.>"]
[{"$f":"A41+0.1","v":5.2999999999999989},{"$f":"B41","v":"Macroeconomic Data"},"Functional","Cross Shopping",null,"Should Have","Please describe your solution's ability to show a visitor's change of location from one shop to another within a particular geofenced area, and/or across multiple geofenced areas.","Cannot Meet",{"$f":"IFERROR(VLOOKUP(H42,VendorResponseLookupTbl[], 2,0), \"\")","v":" The product cannot meet the requirement “Out-of-the-Box”, “With Configuration”, “With Custom Programming” or with a “Future Release”."},"<Please use this space to note what product/module of the solution is required to address the requirement.>"]
[{"$f":"A42+0.1","v":5.3999999999999986},{"$f":"B42","v":"Macroeconomic Data"},"Functional","Business Cannibalization",null,"Should Have","Please describe your solution's ability to show the frequency of visitors to a geofenced area over time that provides information on if a business is seeing increased/decreased traffic when a new business is added to an area.","Cannot Meet",{"$f":"IFERROR(VLOOKUP(H43,VendorResponseLookupTbl[], 2,0), \"\")","v":" The product cannot meet the requirement “Out-of-the-Box”, “With Configuration”, “With Custom Programming” or with a “Future Release”."},"<Please use this space to note what product/module of the solution is required to address the requirement.>"]
[{"$f":"A43+0.1","v":5.4999999999999982},{"$f":"B43","v":"Macroeconomic Data"},"Functional","Benchmarking and Trends",null,"Should Have","Please describe your solution's ability to show a benchmark and/or trend in designated areas and compared to those that stretch across local, regional, and national areas that have not been geofenced.","Cannot Meet",{"$f":"IFERROR(VLOOKUP(H44,VendorResponseLookupTbl[], 2,0), \"\")","v":" The product cannot meet the requirement “Out-of-the-Box”, “With Configuration”, “With Custom Programming” or with a “Future Release”."},"<Please use this space to note what product/module of the solution is required to address the requirement.>"]
[]
[6,"Traffic Data"]
[{"$f":"A46+0.1","v":6.1},{"$f":"B46","v":"Traffic Data"},"Functional","Vehicle Traffic Fluctuation",null,"Must Have","Please describe your solution's ability to assess and show volume and fluctuations in vehicle traffic around critical areas.  Assessments would be on a basis of:\n\na) Daily\nb) Weekly\nc) Monthly\nd) Annual ","Cannot Meet",{"$f":"IFERROR(VLOOKUP(H47,VendorResponseLookupTbl[], 2,0), \"\")","v":" The product cannot meet the requirement “Out-of-the-Box”, “With Configuration”, “With Custom Programming” or with a “Future Release”."},"<Please use this space to note what product/module of the solution is required to address the requirement.>"]
[{"$f":"A47+0.1","v":6.1999999999999993},{"$f":"B47","v":"Traffic Data"},"Functional","Foot Traffic Fluctuation",null,"Must Have","Please provide a description of your solution's ability to show fluctuations in foot traffic for pedestrians, including the volume of the foot traffic seen in a designated area.\n\nAssessments would be on a basis of:\n\na) Daily\nb) Weekly\nc) Monthly\nd) Annual ","Cannot Meet",{"$f":"IFERROR(VLOOKUP(H48,VendorResponseLookupTbl[], 2,0), \"\")","v":" The product cannot meet the requirement “Out-of-the-Box”, “With Configuration”, “With Custom Programming” or with a “Future Release”."},"<Please use this space to note what product/module of the solution is required to address the requirement.>"]
[{"$f":"A48+0.1","v":6.2999999999999989},{"$f":"B48","v":"Traffic Data"},"Functional","Bicycle Traffic Fluctuation",null,"Should Have","Please provide a description of your solution's ability to show fluctuations in bicycle traffic, including the volume of the foot traffic seen in a designated area.\n\nAssessments would be on a basis of:\n\na) Daily\nb) Weekly\nc) Monthly\nd) Annual ","Cannot Meet",{"$f":"IFERROR(VLOOKUP(H49,VendorResponseLookupTbl[], 2,0), \"\")","v":" The product cannot meet the requirement “Out-of-the-Box”, “With Configuration”, “With Custom Programming” or with a “Future Release”."},"<Please use this space to note what product/module of the solution is required to address the requirement.>"]
[]
[7,"Reporting","Functional"]
[{"$f":"A51+0.1","v":7.1},{"$f":"B51","v":"Reporting"},"Functional","Report Generation",null,"Must Have","Please describe in what common formats (e.g., PDF, Excel, Word, etc.) that your solution can create reports in for exporting/saving by a user.","Cannot Meet",{"$f":"IFERROR(VLOOKUP(H52,VendorResponseLookupTbl[], 2,0), \"\")","v":" The product cannot meet the requirement “Out-of-the-Box”, “With Configuration”, “With Custom Programming” or with a “Future Release”."},"<Please use this space to note what product/module of the solution is required to address the requirement.>"]
[{"$f":"A52+0.1","v":7.1999999999999993},{"$f":"B52","v":"Reporting"},"Functional","Report Scheduling",null,"Must Have","Please describe if your solution can schedule and auto generate a specific report based on criteria that is set by a user.","Cannot Meet",{"$f":"IFERROR(VLOOKUP(H53,VendorResponseLookupTbl[], 2,0), \"\")","v":" The product cannot meet the requirement “Out-of-the-Box”, “With Configuration”, “With Custom Programming” or with a “Future Release”."},"<Please use this space to note what product/module of the solution is required to address the requirement.>"]
[{"$f":"A53+0.1","v":7.2999999999999989},{"$f":"B53","v":"Reporting"},"Functional","Canned Reports",null,"Must Have","Please describe what reports your solution can offer as \"canned\" reports that come ready to use.","Cannot Meet",{"$f":"IFERROR(VLOOKUP(H54,VendorResponseLookupTbl[], 2,0), \"\")","v":" The product cannot meet the requirement “Out-of-the-Box”, “With Configuration”, “With Custom Programming” or with a “Future Release”."},"<Please use this space to note what product/module of the solution is required to address the requirement.>"]
[{"$f":"A54+0.1","v":7.3999999999999986},{"$f":"B54","v":"Reporting"},"Functional","Ad Hoc and Custom Reports",null,"Must Have","Please describe your solution's abilities to allow a user to create an ad hoc or custom report from a set of criteria that they desire, and how that report can be saved for future reuse by that user.","Cannot Meet",{"$f":"IFERROR(VLOOKUP(H55,VendorResponseLookupTbl[], 2,0), \"\")","v":" The product cannot meet the requirement “Out-of-the-Box”, “With Configuration”, “With Custom Programming” or with a “Future Release”."},"<Please use this space to note what product/module of the solution is required to address the requirement.>"]
[{"$f":"A55+0.1","v":7.4999999999999982},{"$f":"B55","v":"Reporting"},"Functional","Emailing Reports",null,"Should Have","Please describe your solution's ability to email a report directly from your system to another user through Microsoft Outlook.","Cannot Meet",{"$f":"IFERROR(VLOOKUP(H56,VendorResponseLookupTbl[], 2,0), \"\")","v":" The product cannot meet the requirement “Out-of-the-Box”, “With Configuration”, “With Custom Programming” or with a “Future Release”."},"<Please use this space to note what product/module of the solution is required to address the requirement.>"]
[{"$f":"A56+0.1","v":7.5999999999999979},{"$f":"B56","v":"Reporting"},"Functional","Report Representation",null,"Must Have","Please describe your solution's ability to represent different criteria and/or aspects in different forms that may include, but are not limited to:\n\na) Heat Maps\nb) Line/Bar Graphs\nc) Comparable Graphs between 2 sets of data or 2 different designated areas","Cannot Meet",{"$f":"IFERROR(VLOOKUP(H57,VendorResponseLookupTbl[], 2,0), \"\")","v":" The product cannot meet the requirement “Out-of-the-Box”, “With Configuration”, “With Custom Programming” or with a “Future Release”."},"<Please use this space to note what product/module of the solution is required to address the requirement.>"]
[]
[8,"Record Retention"]
[{"$f":"A59+0.1","v":8.1},{"$f":"B59","v":"Record Retention"},"Functional","Recovery and Restoration",null,"Must Have","Describe your solution's capabilities to recover files that need to recovered and restored from accidental deletion.","Cannot Meet",{"$f":"IFERROR(VLOOKUP(H60,VendorResponseLookupTbl[], 2,0), \"\")","v":" The product cannot meet the requirement “Out-of-the-Box”, “With Configuration”, “With Custom Programming” or with a “Future Release”."},"<Please use this space to note what product/module of the solution is required to address the requirement.>"]
[{"$f":"A60+0.1","v":8.1999999999999993},{"$f":"B60","v":"Record Retention"},"Functional","Policies",null,"Should Have","Describe how your solution can support Thornton specifically defined records retention policies that require deletion upon user specified dates for permanent deletion.","Cannot Meet",{"$f":"IFERROR(VLOOKUP(H61,VendorResponseLookupTbl[], 2,0), \"\")","v":" The product cannot meet the requirement “Out-of-the-Box”, “With Configuration”, “With Custom Programming” or with a “Future Release”."},"<Please use this space to note what product/module of the solution is required to address the requirement.>"]
[8.2999999999999989,"Record Retention","Functional","Event Archiving",null,"Should Have","Describe how your solution can automatically archive previous events and how that information can be viewed/retrieved.","Cannot Meet",{"$f":"IFERROR(VLOOKUP(H62,VendorResponseLookupTbl[], 2,0), \"\")","v":" The product cannot meet the requirement “Out-of-the-Box”, “With Configuration”, “With Custom Programming” or with a “Future Release”."},"<Please use this space to note what product/module of the solution is required to address the requirement.>"]

{"sheet":"Vendor Response Lookup","index":1,"n_rows":6,"n_cols":2,"rows_kept":6,"cut":false,"hidden":true,"merged":[]}
["RequirementCompliance","Description"]
["Cannot Meet"," The product cannot meet the requirement “Out-of-the-Box”, “With Configuration”, “With Custom Programming” or with a “Future Release”."]
["Future Release","The current version of the solution cannot meet the requirement “Out of the Box” or “With Configuration” but will be able to with a scheduled, future release of the product."]
["Out-of-the-Box","The solution meets the requirement as is, “out-of-the-box” functionality with no configuration or custom programming/coding."]
["With Configuration","The solution can meet the requirement by arranging the functional parameters that are already inherent in the product – and not by changing the product’s source code – so that it functions in a way that meets the City’s specific business needs."]
["With Custom Programming","The solution can meet the requirement only by modifying the product’s source code (changing or adding new code) to enable it to do what it was not originally able to do."]

{"sheet":"MoSCoW Values","index":2,"n_rows":5,"n_cols":2,"rows_kept":5,"cut":false,"hidden":false,"merged":[]}
["Prioritization Type","Prioritization Description"]
["Must Have","Requirements labeled as \"Must Have\" are critical to the current delivery timebox in order for it to be a success. If even one \"Must Have\" requirement is not included, the project delivery should be considered a failure (note: requirements can be downgraded from \"Must Have\", by agreement with all relevant stakeholders; for example, when new requirements are deemed more important). "]
["Should Have","Requirements labeled as \"Should Have\" are important but not necessary for delivery in the current delivery timebox. While \"Should Have\" requirements can be as important as \"Must Have\", they are often not as time-critical or there may be another way to satisfy the requirement, so that it can be held back until a future delivery timebox."]
["Could Have","Requirements labeled as \"Could Have\" are desirable but not necessary, and could improve user experience or customer satisfaction for little development cost. These will typically be included if time and resources permit."]
["Won't Have","Requirements labeled as \"Won't Have\" have been agreed by stakeholders as the least-critical, lowest-payback items, or not appropriate at that time. As a result, \"Won't Have\" requirements are not planned into the schedule for the next delivery timebox. \"Won't Have\" requirements are either dropped or reconsidered for inclusion in a later timebox. (Note: occasionally the term Would like to have is used; however, that usage is incorrect, as this last priority is clearly stating something is outside the scope of delivery)."]